fUST/lending_fUST_20250221
["ID","MTS","AMOUNT","RATE_DAILY","PERIOD"]
[353870040,1740105033224,-631.8195464,0.00013698,2]
[353870041,1740105033234,-501.57608995,0.00013698,2]
[353870042,1740105033244,-500.75184604,0.00013698,2]
[353870043,1740105033255,-503.96241802,0.00013698,2]
[353870044,1740105033264,-504.04077988,0.00013698,2]
[353870045,1740105033274,-523.56782558,0.00013698,2]
[353870046,1740105033284,-500.0,0.00013698,2]
[353870047,1740105033294,-500.0,0.00013698,2]
[353870048,1740105033304,-500.0,0.00013698,2]
[353870049,1740105033314,-500.0,0.00013698,2]
[353870050,1740105033324,-500.0,0.00013698,2]
[353870051,1740105033333,-500.0,0.00013698,2]
[353870052,1740105033343,-500.0,0.00013698,2]
[353870053,1740105033353,-504.92073269,0.00013698,2]
[353870054,1740105033363,-168.53544509,0.00013698,2]
[353870055,1740105033372,-500.0,0.00013698,2]
[353870056,1740105033382,-504.47300362,0.00013698,2]
[353870057,1740105033392,-502.01421432,0.00013698,2]
[353870058,1740105033402,-500.0,0.00013698,2]
[353870059,1740105033412,-32.8362156,0.00013698,2]
[353870060,1740105033431,-467.1637844,0.00013698,2]
[353870061,1740105033441,-414.30235456,0.00013698,2]
[353870065,1740105038600,-88.08534962,0.00013698,2]
[353870066,1740105038610,-500.0,0.00013698,2]
[353870067,1740105038619,-504.87719007,0.00013698,2]
[353870068,1740105038629,-500.0,0.00013698,2]
[353870069,1740105038639,-500.0,0.00013698,2]
[353870070,1740105038649,-701.53,0.00013698,2]
[353870071,1740105038659,-502.54489888,0.00013698,2]
[353870072,1740105038669,-499.94384192,0.00013698,2]
[353870073,1740105038679,-500.0,0.00013698,2]
[353870074,1740105038688,-500.0,0.00013698,2]
[353870075,1740105038697,-506.90499539,0.00013698,2]
[353870076,1740105038707,-504.58942517,0.00013698,2]
[353870077,1740105038716,-503.4046459,0.00013698,2]
[353870078,1740105038726,-825.46,0.00013698,2]
[353870079,1740105038735,-503.75444132,0.00013698,2]
[353870080,1740105038745,-911.01,0.00013698,2]
[353870081,1740105038755,-500.0,0.00013698,2]
[353870082,1740105038764,-500.0,0.00013698,2]
[353870083,1740105038773,-500.0,0.00013698,2]
[353870084,1740105038783,-500.0,0.00013698,2]
[353870085,1740105038792,-500.0,0.00013698,2]
[353870086,1740105038801,-569.18,0.00013698,2]
[353870087,1740105038810,-504.67,0.00013698,2]
[353870088,1740105038820,-506.31753928,0.00013698,2]
[353870089,1740105038829,-506.8,0.00013698,2]
[353870090,1740105038838,-500.0,0.00013698,2]
[353870091,1740105038847,-186.79683411,0.00013698,2]
[353870092,1740105038856,-501.79781436,0.00013698,2]
[353870093,1740105038866,-500.0,0.00013698,2]
[353870094,1740105038875,-172.33302398,0.00013698,2]
[353870095,1740105038887,-327.66697602,0.00013698,2]
[353870096,1740105038897,-500.0,0.00013698,2]
[353870097,1740105038908,-501.20063397,0.00013698,2]
[353870098,1740105038917,-500.53623272,0.00013698,2]
[353870099,1740105038927,-500.0,0.00013698,2]
[353870100,1740105038936,-502.84438684,0.00013698,2]
[353870101,1740105038946,-505.14736578,0.00013698,2]
[353870102,1740105038955,-502.34248952,0.00013698,2]
[353870103,1740105038965,-500.94054936,0.00013698,2]
[353870104,1740105038975,-500.0,0.00013698,2]
[353870105,1740105038984,-500.96050159,0.00013698,2]
[353870106,1740105038994,-500.0,0.00013698,2]
[353870107,1740105039003,-376.9413525,0.00013698,2]
[353870108,1740105039013,-539.06600983,0.00013698,2]
[353870109,1740105039024,-319.23557379,0.00013698,2]
[353870110,1740105039039,-291.47433211,0.00013698,2]
[353870111,1740105039049,-501.94886952,0.00013698,2]
[353870112,1740105039060,-902.53,0.00013698,2]
[353870113,1740105039069,-500.0,0.00013698,2]
[353870114,1740105039079,-500.0,0.00013698,2]
[353870115,1740105039089,-500.0,0.00013698,2]
[353870116,1740105039098,-500.0,0.00013698,2]
[353870117,1740105039108,-679.33,0.00013698,2]
[353870118,1740105039117,-354.03181598,0.00013698,2]
[353870119,1740105039127,-300.6476815,0.00013698,2]
[353870120,1740105039136,-583.73,0.00013698,2]
[353870121,1740105039146,-500.0,0.00013698,2]
[353870122,1740105039157,-500.0,0.00013698,2]
[353870123,1740105039167,-500.0,0.00013698,2]
[353870124,1740105039176,-507.40101598,0.00013698,2]
[353870125,1740105039186,-500.0,0.00013698,2]
[353870126,1740105039195,-501.10152351,0.00013698,2]
[353870127,1740105039205,-500.0,0.00013698,2]
[353870128,1740105039214,-500.0,0.00013698,2]
[353870129,1740105039224,-500.0,0.00013698,2]
[353870130,1740105039235,-500.0,0.00013698,2]
[353870131,1740105039246,-500.0,0.00013698,2]
[353870132,1740105039256,-500.0,0.00013698,2]
[353870133,1740105039266,-501.25204282,0.00013698,2]
[353870134,1740105039276,-503.54469297,0.00013698,2]
[353870135,1740105039285,-500.0,0.00013698,2]
[353870136,1740105039295,-500.0,0.00013698,2]
[353870137,1740105039305,-500.0,0.00013698,2]
[353870138,1740105039315,-613.66,0.00013698,2]
[353870139,1740105039325,-507.34298751,0.00013698,2]
[353870140,1740105039335,-500.0,0.00013698,2]
[353870141,1740105039345,-500.58179345,0.00013698,2]
[353870142,1740105039356,-1491.65,0.00013698,2]
[353870143,1740105039366,-502.51388619,0.00013698,2]
[353870144,1740105039376,-500.0,0.00013698,2]
[353870145,1740105039386,-500.0,0.00013698,2]
[353870146,1740105039395,-500.0,0.00013698,2]
[353870147,1740105039405,-10384.35,0.00013698,2]
[353870148,1740105039416,-500.0,0.00013698,2]
[353870149,1740105039426,-1000.0,0.00013698,2]
[353870150,1740105039436,-2748.54,0.00013698,2]
[353870151,1740105039446,-828.66,0.00013698,2]
[353870152,1740105039455,-862.86,0.00013698,2]
[353870153,1740105039465,-501.35360459,0.00013698,2]
[353870154,1740105039475,-545.78,0.00013698,2]
[353870155,1740105039484,-500.0,0.00013698,2]
[353870156,1740105039494,-27089.55,0.00013698,2]
[353870157,1740105039503,-501.33759164,0.00013698,2]
[353870158,1740105039513,-1418.78,0.00013698,2]
[353870159,1740105039523,-500.0,0.00013698,2]
[353870160,1740105039532,-929.43,0.00013698,2]
[353870161,1740105039542,-1022.32,0.00013698,2]
[353870162,1740105039551,-500.0,0.00013698,2]
[353870163,1740105039561,-500.0,0.00013698,2]
[353870164,1740105039571,-905.19,0.00013698,2]
[353870165,1740105039580,-504.92992804,0.00013698,2]
[353870166,1740105039590,-500.0,0.00013698,2]
[353870167,1740105039599,-1807.97,0.00013698,2]
[353870168,1740105039609,-651.82,0.00013698,2]
[353870169,1740105039618,-1099.74,0.00013698,2]
[353870170,1740105039628,-500.0,0.00013698,2]
[353870171,1740105039638,-500.0,0.00013698,2]
[353870172,1740105039647,-586.82359029,0.00013698,2]
[353870173,1740105039658,-2419.43,0.00013698,2]
[353870174,1740105039667,-501.76249434,0.00013698,2]
[353870175,1740105039677,-500.0,0.00013698,2]
[353870176,1740105039687,-500.0,0.00013698,2]
[353870177,1740105039696,-501.85779859,0.00013698,2]
[353870178,1740105039705,-4773.91,0.00013698,2]
[353870179,1740105039715,-500.0,0.00013698,2]
[353870180,1740105039725,-500.0,0.00013698,2]
[353870181,1740105039735,-500.0,0.00013698,2]
[353870182,1740105039745,-500.0,0.00013698,2]
[353870183,1740105039755,-2673.02,0.00013698,2]
[353870184,1740105039765,-288.49302939,0.00013698,2]
[353870185,1740105039774,-2591.29,0.00013698,2]
[353870186,1740105039784,-500.54992197,0.00013698,2]
[353870187,1740105039793,-500.0,0.00013698,2]
[353870188,1740105039802,-500.50972742,0.00013698,2]
[353870189,1740105039811,-500.0,0.00013698,2]
[353870190,1740105039821,-500.0,0.00013698,2]
[353870191,1740105039831,-1440.03,0.00013698,2]
[353870192,1740105039840,-513.46125984,0.00013698,2]
[353870193,1740105039850,-625.9,0.00013698,2]
[353870194,1740105039860,-500.0,0.00013698,2]
[353870195,1740105039869,-1476.65,0.00013698,2]
[353870196,1740105039879,-932.8,0.00013698,2]
[353870197,1740105039888,-500.0,0.00013698,2]
[353870198,1740105039898,-502.42400886,0.00013698,2]
[353870199,1740105039908,-500.0,0.00013698,2]
[353870200,1740105039918,-1711.64,0.00013698,2]
[353870201,1740105039928,-764.64,0.00013698,2]
[353870202,1740105039937,-596.42994496,0.00013698,2]
[353870203,1740105039947,-500.0,0.00013698,2]
[353870204,1740105039957,-500.0,0.00013698,2]
[353870205,1740105039966,-500.0,0.00013698,2]
[353870206,1740105039975,-1815.45,0.00013698,2]
[353870207,1740105039985,-500.0,0.00013698,2]
[353870208,1740105039995,-503.89516596,0.00013698,2]
[353870209,1740105040005,-381.46592178,0.00013698,2]
[353870210,1740105040014,-1440.61,0.00013698,2]
[353870211,1740105040024,-503.86098965,0.00013698,2]
[353870212,1740105040034,-501.28230942,0.00013698,2]
[353870213,1740105040044,-4060.86,0.00013698,2]
[353870214,1740105040054,-500.0,0.00013698,2]
[353870215,1740105040063,-500.0,0.00013698,2]
[353870216,1740105040073,-500.0,0.00013698,2]
[353870217,1740105040083,-12941.28,0.00013698,2]
[353870218,1740105040094,-500.59182267,0.00013698,2]
[353870219,1740105040104,-500.0,0.00013698,2]
[353870220,1740105040113,-500.0,0.00013698,2]
[353870221,1740105040124,-500.0,0.00013698,2]
[353870222,1740105040134,-500.0,0.00013698,2]
[353870223,1740105040144,-500.0,0.00013698,2]
[353870224,1740105040155,-500.0,0.00013698,2]
[353870226,1740105040165,-500.0,0.00013698,2]
[353870227,1740105040174,-501.90517466,0.00013698,2]
[353870228,1740105040185,-500.0,0.00013698,2]
[353870229,1740105040195,-500.0,0.00013698,2]
[353870230,1740105040205,-500.0,0.00013698,2]
[353870231,1740105040215,-500.0,0.00013698,2]
[353870232,1740105040225,-210.0944019,0.00013698,2]
[353870233,1740105040235,-500.0,0.00013698,2]
[353870234,1740105040244,-501.79654225,0.00013698,2]
[353870235,1740105040254,-500.0,0.00013698,2]
[353870236,1740105040263,-500.38466599,0.00013698,2]
[353870237,1740105040273,-1751.08,0.00013698,2]
[353870238,1740105040283,-500.0,0.00013698,2]
[353870239,1740105040293,-500.0,0.00013698,2]
[353870240,1740105040303,-511.19,0.00013698,2]
[353870241,1740105040313,-500.0,0.00013698,2]
[353870242,1740105040323,-542.91681949,0.00013698,2]
[353870243,1740105040332,-500.0,0.00013698,2]
[353870244,1740105040342,-500.0,0.00013698,2]
[353870245,1740105040352,-500.0,0.00013698,2]
[353870246,1740105040362,-1276.71,0.00013698,2]
[353870247,1740105040372,-500.0,0.00013698,2]
[353870248,1740105040382,-500.0,0.00013698,2]
[353870249,1740105040520,-502.76172559,0.00013698,2]
[353870250,1740105040531,-630.25,0.00013698,2]
[353870251,1740105040541,-501.90073531,0.00013698,2]
[353870252,1740105040551,-1900.03,0.00013698,2]
[353870253,1740105040561,-1328.93,0.00013698,2]
[353870254,1740105040571,-501.92013995,0.00013698,2]
[353870255,1740105040580,-500.0,0.00013698,2]
[353870256,1740105040589,-504.12576248,0.00013698,2]
[353870257,1740105040599,-5609.04,0.00013698,2]
[353870258,1740105040609,-501.14469594,0.00013698,2]
[353870259,1740105040618,-500.0,0.00013698,2]
[353870260,1740105040628,-500.75311462,0.00013698,2]
[353870261,1740105040638,-1150.19,0.00013698,2]
[353870262,1740105040647,-843.944598,0.00013699,2]
[353870263,1740105040658,-180.500962,0.00013699,2]
[353870264,1740105040667,-500.0,0.00013699,2]
[353870265,1740105040676,-217.67000977,0.00013699,2]
[353870266,1740105040686,-500.0,0.00013699,2]
[353870267,1740105040696,-400.39422986,0.00013699,2]
[353870268,1740105040706,-500.0,0.00013699,2]
[353870269,1740105040715,-500.0,0.00013699,2]
[353870270,1740105040724,-500.0,0.00013699,2]
[353870271,1740105040734,-500.0,0.00013699,2]
[353870272,1740105040744,-500.0,0.00013699,2]
[353870273,1740105040753,-500.0,0.00013699,2]
[353870274,1740105040762,-500.0,0.00013699,2]
[353870275,1740105040771,-500.0,0.00013699,2]
[353870276,1740105040781,-500.0,0.00013699,2]
[353870277,1740105040790,-500.0,0.00013699,2]
[353870278,1740105040799,-500.0,0.00013699,2]
[353870279,1740105040808,-263.12707911,0.00013699,2]
[353870280,1740105040818,-500.0,0.00013699,2]
[353870281,1740105040827,-500.0,0.00013699,2]
[353870282,1740105040836,-500.0,0.00013699,2]
[353870283,1740105040846,-500.0,0.00013699,2]
[353870284,1740105040856,-500.0,0.00013699,2]
[353870285,1740105040865,-500.0,0.00013699,2]
[353870286,1740105040875,-500.0,0.00013699,2]
[353870287,1740105040885,-500.0,0.00013699,2]
[353870288,1740105040895,-500.0,0.00013699,2]
[353870289,1740105040905,-500.0,0.00013699,2]
[353870290,1740105040915,-500.0,0.00013699,2]
[353870291,1740105040924,-500.0,0.00013699,2]
[353870292,1740105040934,-500.0,0.00013699,2]
[353870293,1740105040944,-500.0,0.00013699,2]
[353870294,1740105040953,-500.0,0.00013699,2]
[353870295,1740105040963,-500.0,0.00013699,2]
[353870296,1740105040972,-500.0,0.00013699,2]
[353870297,1740105040982,-500.0,0.00013699,2]
[353870298,1740105040991,-320.56229148,0.00013699,2]
[353870299,1740105041001,-500.0,0.00013699,2]
[353870300,1740105041010,-500.0,0.00013699,2]
[353870301,1740105041019,-500.0,0.00013699,2]
[353870302,1740105041029,-500.0,0.00013699,2]
[353870303,1740105041039,-500.0,0.00013699,2]
[353870304,1740105041048,-500.0,0.00013699,2]
[353870305,1740105041057,-500.0,0.00013699,2]
[353870306,1740105041067,-232.05622915,0.00013699,2]
[353870307,1740105041077,-500.0,0.00013699,2]
[353870308,1740105041086,-500.0,0.00013699,2]
[353870309,1740105041096,-500.0,0.00013779,2]
[353870310,1740105041105,-403.7396135,0.00013779,2]
[353870311,1740105041114,-500.0,0.0001378,2]
[353870312,1740105041123,-500.0,0.0001378,2]
[353870313,1740105041133,-500.0,0.0001378,2]
[353870314,1740105041143,-500.0,0.0001378,2]
[353870315,1740105041152,-500.0,0.0001378,2]
[353870316,1740105041161,-500.0,0.0001378,2]
[353870317,1740105041171,-500.0,0.0001378,2]
[353870318,1740105041180,-500.0,0.0001378,2]
[353870319,1740105041190,-500.0,0.0001378,2]
[353870320,1740105041199,-500.0,0.0001378,2]
[353870321,1740105041209,-500.0,0.0001378,2]
[353870322,1740105041218,-500.0,0.0001378,2]
[353870323,1740105041228,-500.0,0.0001378,2]
[353870324,1740105041242,-500.0,0.0001378,2]
[353870325,1740105041252,-215.41906814,0.0001378,2]
[353870326,1740105041262,-504.666055,0.0001378,2]
[353870327,1740105041272,-500.0,0.0001378,2]
[353870328,1740105041281,-701.53,0.0001378,2]
[353870329,1740105041292,-500.0,0.0001378,2]
[353870330,1740105041302,-500.0,0.0001378,2]
[353870331,1740105041311,-825.46,0.0001378,2]
[353870332,1740105041321,-911.01,0.0001378,2]
[353870333,1740105041331,-500.0,0.0001378,2]
[353870334,1740105041341,-500.0,0.0001378,2]
[353870335,1740105041350,-500.0,0.0001378,2]
[353870336,1740105041360,-500.0,0.0001378,2]
[353870337,1740105041369,-500.0,0.0001378,2]
[353870338,1740105041379,-569.18,0.0001378,2]
[353870339,1740105041389,-504.67,0.0001378,2]
[353870340,1740105041398,-506.8,0.0001378,2]
[353870341,1740105041408,-500.0,0.0001378,2]
[353870342,1740105041417,-500.0,0.0001378,2]
[353870343,1740105041426,-500.0,0.0001378,2]
[353870344,1740105041436,-500.0,0.0001378,2]
[353870345,1740105041445,-500.0,0.0001378,2]
[353870346,1740105041455,-500.0,0.0001378,2]
[353870347,1740105041464,-902.53,0.0001378,2]
[353870348,1740105041474,-505.49796428,0.0001378,2]
[353870349,1740105041483,-500.0,0.0001378,2]
[353870350,1740105041493,-500.0,0.0001378,2]
[353870351,1740105041503,-500.0,0.0001378,2]
[353870352,1740105041512,-679.33,0.0001378,2]
[353870353,1740105041522,-583.73,0.0001378,2]
[353870354,1740105041531,-500.90440795,0.0001378,2]
[353870355,1740105041541,-500.0,0.0001378,2]
[353870356,1740105041550,-506.24042637,0.0001378,2]
[353870357,1740105041560,-501.17249632,0.0001378,2]
[353870358,1740105041570,-500.0,0.0001378,2]
[353870359,1740105041579,-500.0,0.0001378,2]
[353870360,1740105041588,-500.0,0.0001378,2]
[353870361,1740105041597,-500.0,0.0001378,2]
[353870362,1740105041606,-500.0,0.0001378,2]
[353870363,1740105041616,-500.0,0.0001378,2]
[353870364,1740105041625,-500.0,0.0001378,2]
[353870365,1740105041635,-500.0,0.0001378,2]
[353870366,1740105041644,-500.0,0.0001378,2]
[353870367,1740105041655,-613.66,0.0001378,2]
[353870368,1740105041664,-500.0,0.0001378,2]
[353870369,1740105041673,-1491.65,0.0001378,2]
[353870370,1740105041682,-500.0097318,0.0001378,2]
[353870371,1740105041692,-500.0,0.0001378,2]
[353870372,1740105041701,-500.0,0.0001378,2]
[353870373,1740105041711,-10384.35,0.0001378,2]
[353870374,1740105041720,-503.36694849,0.0001378,2]
[353870375,1740105041729,-1000.0,0.0001378,2]
[353870376,1740105041740,-2748.54,0.0001378,2]
[353870377,1740105041749,-828.66,0.0001378,2]
[353870378,1740105041760,-862.86,0.0001378,2]
[353870379,1740105041769,-545.78,0.0001378,2]
[353870380,1740105041779,-500.0,0.0001378,2]
[353870381,1740105041788,-27089.55,0.0001378,2]
[353870382,1740105041797,-1418.78,0.0001378,2]
[353870383,1740105041807,-500.0,0.0001378,2]
[353870384,1740105041816,-929.43,0.0001378,2]
[353870385,1740105041826,-1022.32,0.0001378,2]
[353870386,1740105041835,-500.0,0.0001378,2]
[353870387,1740105041845,-500.0,0.0001378,2]
[353870388,1740105041855,-905.19,0.0001378,2]
[353870389,1740105041864,-500.0,0.0001378,2]
[353870390,1740105041873,-1807.97,0.0001378,2]
[353870391,1740105041882,-651.82,0.0001378,2]
[353870392,1740105041892,-1099.74,0.0001378,2]
[353870393,1740105041901,-500.0,0.0001378,2]
[353870394,1740105041910,-2419.43,0.0001378,2]
[353870395,1740105041919,-500.0,0.0001378,2]
[353870396,1740105041928,-504.64122037,0.0001378,2]
[353870397,1740105041937,-4773.91,0.0001378,2]
[353870398,1740105041947,-500.0,0.0001378,2]
[353870399,1740105041956,-500.0,0.0001378,2]
[353870400,1740105041965,-503.93101736,0.0001378,2]
[353870401,1740105041975,-500.0,0.0001378,2]
[353870402,1740105041984,-2673.02,0.0001378,2]
[353870403,1740105041994,-2591.29,0.0001378,2]
[353870404,1740105042003,-500.0,0.0001378,2]
[353870405,1740105042012,-500.0,0.0001378,2]
[353870406,1740105042022,-1440.03,0.0001378,2]
[353870407,1740105042032,-625.9,0.0001378,2]
[353870408,1740105042041,-500.0,0.0001378,2]
[353870409,1740105042051,-1476.65,0.0001378,2]
[353870410,1740105042060,-932.8,0.0001378,2]
[353870411,1740105042069,-500.0,0.0001378,2]
[353870412,1740105042078,-500.0,0.0001378,2]
[353870413,1740105042087,-1711.64,0.0001378,2]
[353870414,1740105042096,-764.64,0.0001378,2]
[353870415,1740105042106,-503.83248927,0.0001378,2]
[353870416,1740105042115,-500.0,0.0001378,2]
[353870417,1740105042124,-500.0,0.0001378,2]
[353870418,1740105042133,-1815.45,0.0001378,2]
[353870419,1740105042142,-1440.61,0.0001378,2]
[353870420,1740105042151,-4060.86,0.0001378,2]
[353870421,1740105042161,-500.0,0.0001378,2]
[353870422,1740105042170,-500.0,0.0001378,2]
[353870423,1740105042179,-500.0,0.0001378,2]
[353870424,1740105042190,-12941.28,0.0001378,2]
[353870425,1740105042199,-500.0,0.0001378,2]
[353870426,1740105042209,-1751.08,0.0001378,2]
[353870427,1740105042218,-500.0,0.0001378,2]
[353870428,1740105042227,-500.0,0.0001378,2]
[353870429,1740105042239,-511.19,0.0001378,2]
[353870430,1740105042248,-500.0,0.0001378,2]
[353870431,1740105042258,-500.0,0.0001378,2]
[353870432,1740105042268,-500.0,0.0001378,2]
[353870433,1740105042277,-500.0,0.0001378,2]
[353870434,1740105042286,-1276.71,0.0001378,2]
[353870435,1740105042296,-500.0,0.0001378,2]
[353870436,1740105042305,-500.0,0.0001378,2]
[353870437,1740105042315,-630.25,0.0001378,2]
[353870438,1740105042324,-1900.03,0.0001378,2]
[353870439,1740105042333,-1328.93,0.0001378,2]
[353870440,1740105042342,-500.0,0.0001378,2]
[353870441,1740105042352,-5609.04,0.0001378,2]
[353870442,1740105042362,-512.35017562,0.0001378,2]
[353870443,1740105042371,-1150.19,0.0001378,2]
[353870444,1740105042381,-3000.0,0.00013845,2]
[353870445,1740105042390,-500.0,0.00013862,2]
[353870446,1740105042398,-198.52696091,0.00013862,2]
[353870447,1740105042407,-540.53524647,0.00013862,2]
[353870448,1740105042417,-500.0,0.00013863,2]
[353870449,1740105042426,-500.0,0.00013863,2]
[353870450,1740105042436,-500.0,0.00013863,2]
[353870451,1740105042445,-500.0,0.00013863,2]
[353870452,1740105042454,-500.0,0.00013863,2]
[353870453,1740105042464,-500.0,0.00013863,2]
[353870454,1740105042473,-500.0,0.00013863,2]
[353870455,1740105042482,-500.0,0.00013863,2]
[353870456,1740105042491,-500.0,0.00013863,2]
[353870457,1740105042501,-500.0,0.00013863,2]
[353870458,1740105042510,-500.0,0.00013863,2]
[353870459,1740105042519,-500.0,0.00013863,2]
[353870460,1740105042529,-500.0,0.00013863,2]
[353870461,1740105042538,-500.0,0.00013863,2]
[353870462,1740105042547,-500.0,0.00013863,2]
[353870463,1740105042557,-701.53,0.00013863,2]
[353870464,1740105042566,-500.0,0.00013863,2]
[353870465,1740105042575,-500.0,0.00013863,2]
[353870466,1740105042584,-825.46,0.00013863,2]
[353870467,1740105042594,-911.01,0.00013863,2]
[353870468,1740105042603,-500.0,0.00013863,2]
[353870469,1740105042613,-500.0,0.00013863,2]
[353870470,1740105042622,-500.0,0.00013863,2]
[353870471,1740105042630,-500.0,0.00013863,2]
[353870472,1740105042639,-500.0,0.00013863,2]
[353870473,1740105042649,-569.18,0.00013863,2]
[353870474,1740105042659,-504.67,0.00013863,2]
[353870475,1740105042670,-506.8,0.00013863,2]
[353870476,1740105042679,-500.0,0.00013863,2]
[353870477,1740105042688,-500.0,0.00013863,2]
[353870478,1740105042698,-500.0,0.00013863,2]
[353870479,1740105042707,-646.88448559,0.00013863,2]
[353870480,1740105042717,-500.0,0.00013863,2]
[353870481,1740105042726,-500.0,0.00013863,2]
[353870482,1740105042736,-902.53,0.00013863,2]
[353870483,1740105042746,-500.0,0.00013863,2]
[353870484,1740105042755,-500.0,0.00013863,2]
[353870485,1740105042764,-322.90528435,0.00013863,2]
[353870486,1740105042773,-679.33,0.00013863,2]
[353870487,1740105042783,-583.73,0.00013863,2]
[353870488,1740105042792,-500.0,0.00013863,2]
[353870489,1740105042801,-500.0,0.00013863,2]
[353870490,1740105042810,-500.0,0.00013863,2]
[353870491,1740105042819,-500.0,0.00013863,2]
[353870492,1740105042828,-402.1478177,0.00013863,2]
[353870493,1740105042838,-500.0,0.00013863,2]
[353870494,1740105042847,-500.0,0.00013863,2]
[353870495,1740105042856,-500.0,0.00013863,2]
[353870496,1740105042865,-500.0,0.00013863,2]
[353870497,1740105042873,-500.0,0.00013863,2]
[353870498,1740105042882,-613.66,0.00013863,2]
[353870499,1740105042891,-500.0,0.00013863,2]
[353870500,1740105042900,-1491.65,0.00013863,2]
[353870501,1740105042910,-500.0,0.00013863,2]
[353870502,1740105042919,-500.0,0.00013863,2]
[353870503,1740105042928,-10384.35,0.00013863,2]
[353870504,1740105042937,-1000.0,0.00013863,2]
[353870505,1740105042946,-2748.54,0.00013863,2]
[353870506,1740105042955,-828.66,0.00013863,2]
[353870507,1740105042964,-862.86,0.00013863,2]
[353870508,1740105042973,-545.78,0.00013863,2]
[353870509,1740105042982,-500.0,0.00013863,2]
[353870510,1740105042991,-27089.55,0.00013863,2]
[353870511,1740105043001,-1418.78,0.00013863,2]
[353870512,1740105043010,-500.0,0.00013863,2]
[353870513,1740105043018,-929.43,0.00013863,2]
[353870514,1740105043028,-1022.32,0.00013863,2]
[353870516,1740105043038,-500.0,0.00013863,2]
[353870517,1740105043047,-500.0,0.00013863,2]
[353870518,1740105043055,-905.19,0.00013863,2]
[353870519,1740105043064,-500.0,0.00013863,2]
[353870520,1740105043074,-1807.97,0.00013863,2]
[353870521,1740105043084,-651.82,0.00013863,2]
[353870522,1740105043092,-1099.74,0.00013863,2]
[353870523,1740105043100,-500.0,0.00013863,2]
[353870524,1740105043109,-2419.43,0.00013863,2]
[353870525,1740105043118,-504.99505626,0.00013863,2]
[353870526,1740105043128,-4773.91,0.00013863,2]
[353870527,1740105043137,-500.0,0.00013863,2]
[353870528,1740105043146,-500.0,0.00013863,2]
[353870530,1740105043156,-500.0,0.00013863,2]
[353870532,1740105043254,-2673.02,0.00013863,2]
[353870533,1740105043276,-2591.29,0.00013863,2]
[353870534,1740105043286,-500.0,0.00013863,2]
[353870535,1740105043295,-500.0,0.00013863,2]
[353870536,1740105043305,-1440.03,0.00013863,2]
[353870538,1740105043315,-625.9,0.00013863,2]
[353870540,1740105043324,-500.0,0.00013863,2]
[353870542,1740105043334,-1476.65,0.00013863,2]
[353870544,1740105043343,-932.8,0.00013863,2]
[353870546,1740105043352,-500.0,0.00013863,2]
[353870548,1740105043361,-500.0,0.00013863,2]
[353870550,1740105043371,-1711.64,0.00013863,2]
[353870551,1740105043380,-764.64,0.00013863,2]
[353870552,1740105043390,-500.0,0.00013863,2]
[353870553,1740105043399,-500.0,0.00013863,2]